[Event "Titled Tuesday Blitz July 11 Early 2023"]
[White "Gunina, Valentina"]
[Black "Ambartsumova, Karina"]
[WhiteFideId "4167570"]
[BlackFideId "4166299"]
[WhiteElo "2739"]
[BlackElo "2575"]
[Result "0-1"]
[Round "5"]
[TimeControl "180+2"]
[Date "2023.07.11"]
[WhiteClock "0:00:43"]
[BlackClock "0:00:07"]
[Board "42"]

1. d4 {[%clk 0:03:00]}  d6 {[%clk 0:03:00]} 2. Nf3 {[%clk 0:02:59]}  g6 {[%clk 0:03:00]} 3. c4 {[%clk 0:02:59]}  Bg7 {[%clk 0:03:00]} 4. Nc3 {[%clk 0:02:59]}  e5 {[%clk 0:03:00]} 5. h4 {[%clk 0:02:37]}  Bg4 {[%clk 0:02:50]} 6. dxe5 {[%clk 0:02:34]}  dxe5 {[%clk 0:02:48]} 7. Qxd8+ {[%clk 0:02:33]}  Kxd8 {[%clk 0:02:49]} 8. Ng5 {[%clk 0:02:30]}  Ke8 {[%clk 0:02:32]} 9. f3 {[%clk 0:02:27]}  Bd7 {[%clk 0:02:29]} 10. h5 {[%clk 0:02:25]}  h6 {[%clk 0:01:49]} 11. Nge4 {[%clk 0:02:20]}  f5 {[%clk 0:01:40]} 12. Nc5 {[%clk 0:02:19]}  g5 {[%clk 0:01:21]} 13. Nxb7 {[%clk 0:02:17]}  Nf6 {[%clk 0:01:16]} 14. Nc5 {[%clk 0:02:14]}  Kf7 {[%clk 0:00:54]} 15. e4 {[%clk 0:02:09]}  f4 {[%clk 0:00:47]} 16. Bd2 {[%clk 0:02:06]}  Bc6 {[%clk 0:00:45]} 17. Rc1 {[%clk 0:02:03]}  Nbd7 {[%clk 0:00:43]} 18. Nxd7 {[%clk 0:02:03]}  Bxd7 {[%clk 0:00:44]} 19. c5 {[%clk 0:01:52]}  Be6 {[%clk 0:00:42]} 20. b3 {[%clk 0:01:51]}  c6 {[%clk 0:00:38]} 21. Ba6 {[%clk 0:01:48]}  Rab8 {[%clk 0:00:38]} 22. Ke2 {[%clk 0:01:47]}  Rhd8 {[%clk 0:00:35]} 23. Rb1 {[%clk 0:01:34]}  Bf8 {[%clk 0:00:20]} 24. b4 {[%clk 0:01:34]}  Kg7 {[%clk 0:00:13]} 25. a3 {[%clk 0:01:29]}  Bf7 {[%clk 0:00:13]} 26. b5 {[%clk 0:01:21]}  Bxc5 {[%clk 0:00:13]} 27. bxc6 {[%clk 0:01:19]}  Ne8 {[%clk 0:00:11]} 28. Rxb8 {[%clk 0:01:17]}  Rxb8 {[%clk 0:00:12]} 29. Nd5 {[%clk 0:01:14]}  Bd6 {[%clk 0:00:10]} 30. Rc1 {[%clk 0:01:12]}  Nc7 {[%clk 0:00:09]} 31. Bb4 {[%clk 0:01:05]}  Bxb4 {[%clk 0:00:06]} 32. Nxb4 {[%clk 0:01:04]}  Rg8 {[%clk 0:00:05]} 33. Bc4 {[%clk 0:01:01]}  Rb8 {[%clk 0:00:04]} 34. Bxf7 {[%clk 0:00:59]}  Kxf7 {[%clk 0:00:05]} 35. Rd1 {[%clk 0:01:00]}  Ke6 {[%clk 0:00:04]} 36. Rd7 {[%clk 0:01:00]}  Nb5 {[%clk 0:00:05]} 37. Rxa7 {[%clk 0:00:59]}  Nxa7 {[%clk 0:00:05]} 38. Kd3 {[%clk 0:00:57]}  Rc8 {[%clk 0:00:05]} 39. Nd5 {[%clk 0:00:54]}  Nxc6 {[%clk 0:00:06]} 40. a4 {[%clk 0:00:54]}  Ra8 {[%clk 0:00:06]} 41. Kc4 {[%clk 0:00:54]}  Rxa4+ {[%clk 0:00:05]} 42. Kb5 {[%clk 0:00:55]}  Ra2 {[%clk 0:00:06]} 43. Kxc6 {[%clk 0:00:55]}  Rxg2 {[%clk 0:00:07]} 44. Nc7+ {[%clk 0:00:55]}  Kf6 {[%clk 0:00:07]} 45. Kd6 {[%clk 0:00:54]}  g4 {[%clk 0:00:06]} 46. Nd5+ {[%clk 0:00:54]}  Kg5 {[%clk 0:00:07]} 47. Kxe5 {[%clk 0:00:49]}  gxf3 {[%clk 0:00:07]} 48. Nxf4 {[%clk 0:00:48]}  f2 {[%clk 0:00:07]} 49. Nh3+ {[%clk 0:00:43]}  Kh4 {[%clk 0:00:07]} 0-1


[Site "https://www.chess.com"]

[Event "Titled Tuesday Blitz July 11 Early 2023"]
[White "Rodchenkov, Sergey D."]
[Black "Xu, Yi"]
[WhiteFideId "4168712"]
[BlackFideId "8605564"]
[WhiteElo "2573"]
[BlackElo "2732"]
[Result "0-1"]
[Round "5"]
[TimeControl "180+2"]
[Date "2023.07.11"]
[WhiteClock "0:00:27"]
[BlackClock "0:01:06"]
[Board "43"]

1. e4 {[%clk 0:02:57]}  c5 {[%clk 0:02:59]} 2. Nf3 {[%clk 0:02:57]}  Nc6 {[%clk 0:02:59]} 3. d4 {[%clk 0:02:58]}  cxd4 {[%clk 0:02:59]} 4. Nxd4 {[%clk 0:02:58]}  Nf6 {[%clk 0:03:00]} 5. Nc3 {[%clk 0:02:59]}  e6 {[%clk 0:03:00]} 6. Nxc6 {[%clk 0:02:59]}  bxc6 {[%clk 0:03:00]} 7. e5 {[%clk 0:02:59]}  Nd5 {[%clk 0:03:00]} 8. Ne4 {[%clk 0:03:00]}  Qc7 {[%clk 0:02:59]} 9. f4 {[%clk 0:03:00]}  Rb8 {[%clk 0:02:59]} 10. a3 {[%clk 0:02:56]}  Be7 {[%clk 0:02:56]} 11. c4 {[%clk 0:02:53]}  O-O {[%clk 0:02:04]} 12. cxd5 {[%clk 0:02:44]}  cxd5 {[%clk 0:02:05]} 13. Nd6 {[%clk 0:02:39]}  f6 {[%clk 0:01:38]} 14. Nb5 {[%clk 0:02:24]}  Rxb5 {[%clk 0:01:26]} 15. Bxb5 {[%clk 0:02:24]}  Qa5+ {[%clk 0:01:26]} 16. Qd2 {[%clk 0:01:58]}  Qxb5 {[%clk 0:01:26]} 17. Qe2 {[%clk 0:01:57]}  Qb6 {[%clk 0:01:21]} 18. exf6 {[%clk 0:01:49]}  Bxf6 {[%clk 0:01:18]} 19. Be3 {[%clk 0:01:32]}  d4 {[%clk 0:01:18]} 20. Bf2 {[%clk 0:01:32]}  Ba6 {[%clk 0:01:18]} 21. Qd2 {[%clk 0:01:32]}  Qc6 {[%clk 0:01:14]} 22. Bxd4 {[%clk 0:01:18]}  Qe4+ {[%clk 0:01:14]} 23. Be3 {[%clk 0:01:15]}  Bxb2 {[%clk 0:01:12]} 24. Ra2 {[%clk 0:00:51]}  Qb1+ {[%clk 0:01:09]} 25. Kf2 {[%clk 0:00:27]}  Qxa2 {[%clk 0:01:06]} 0-1


[Site "https://www.chess.com"]

[Event "Titled Tuesday Blitz July 11 Early 2023"]
[White "Horobetz, Graham"]
[Black "Nazari, Arad"]
[WhiteFideId "2047322"]
[BlackFideId "12577324"]
[WhiteElo "2566"]
[BlackElo "2722"]
[Result "0-1"]
[Round "5"]
[TimeControl "180+2"]
[Date "2023.07.11"]
[WhiteClock "0:00:03"]
[BlackClock "0:00:10"]
[Board "44"]

1. e4 {[%clk 0:03:00]}  c5 {[%clk 0:02:57]} 2. Nf3 {[%clk 0:03:00]}  d6 {[%clk 0:02:48]} 3. d4 {[%clk 0:03:00]}  cxd4 {[%clk 0:02:47]} 4. Nxd4 {[%clk 0:03:01]}  Nf6 {[%clk 0:02:48]} 5. Nc3 {[%clk 0:03:00]}  a6 {[%clk 0:02:48]} 6. f3 {[%clk 0:02:58]}  e6 {[%clk 0:02:45]} 7. Be3 {[%clk 0:02:57]}  b5 {[%clk 0:02:24]} 8. Qd2 {[%clk 0:02:38]}  Nbd7 {[%clk 0:02:20]} 9. g4 {[%clk 0:02:33]}  b4 {[%clk 0:02:17]} 10. Nce2 {[%clk 0:02:30]}  h6 {[%clk 0:02:13]} 11. O-O-O {[%clk 0:02:06]}  Qc7 {[%clk 0:01:38]} 12. h4 {[%clk 0:01:43]}  d5 {[%clk 0:01:38]} 13. Bg2 {[%clk 0:01:34]}  Bb7 {[%clk 0:01:08]} 14. g5 {[%clk 0:01:32]}  Nh5 {[%clk 0:00:50]} 15. g6 {[%clk 0:01:28]}  e5 {[%clk 0:00:42]} 16. gxf7+ {[%clk 0:01:25]}  Kxf7 {[%clk 0:00:43]} 17. Nf5 {[%clk 0:00:56]}  d4 {[%clk 0:00:41]} 18. f4 {[%clk 0:00:56]}  Nc5 {[%clk 0:00:25]} 19. Nexd4 {[%clk 0:00:41]}  exd4 {[%clk 0:00:20]} 20. Qxd4 {[%clk 0:00:42]}  b3 {[%clk 0:00:16]} 21. Qc4+ {[%clk 0:00:36]}  Ke8 {[%clk 0:00:11]} 22. Bf3 {[%clk 0:00:34]}  Nf6 {[%clk 0:00:10]} 23. axb3 {[%clk 0:00:32]}  Rc8 {[%clk 0:00:09]} 24. Rhe1 {[%clk 0:00:28]}  Qf7 {[%clk 0:00:08]} 25. Bxc5 {[%clk 0:00:17]}  Qxc4 {[%clk 0:00:08]} 26. bxc4 {[%clk 0:00:17]}  Bxc5 {[%clk 0:00:08]} 27. Nxg7+ {[%clk 0:00:15]}  Kf7 {[%clk 0:00:09]} 28. Nf5 {[%clk 0:00:16]}  Rhe8 {[%clk 0:00:09]} 29. Nxh6+ {[%clk 0:00:11]}  Kg6 {[%clk 0:00:09]} 30. Nf5 {[%clk 0:00:11]}  Bxe4 {[%clk 0:00:09]} 31. Bxe4 {[%clk 0:00:10]}  Nxe4 {[%clk 0:00:09]} 32. Ne3 {[%clk 0:00:05]}  Nf2 {[%clk 0:00:08]} 33. Rg1+ {[%clk 0:00:04]}  Kf7 {[%clk 0:00:06]} 34. Nf5 {[%clk 0:00:02]}  Nxd1 {[%clk 0:00:05]} 35. Rxd1 {[%clk 0:00:03]}  Kf6 {[%clk 0:00:06]} 36. Nd6 {[%clk 0:00:03]}  Bxd6 {[%clk 0:00:05]} 37. Rxd6+ {[%clk 0:00:04]}  Kf5 {[%clk 0:00:05]} 38. Rxa6 {[%clk 0:00:04]}  Rxc4 {[%clk 0:00:05]} 39. b3 {[%clk 0:00:04]}  Rxf4 {[%clk 0:00:06]} 40. Ra5+ {[%clk 0:00:04]}  Kg4 {[%clk 0:00:06]} 41. h5 {[%clk 0:00:04]}  Rf5 {[%clk 0:00:06]} 42. Ra4+ {[%clk 0:00:03]}  Kxh5 {[%clk 0:00:06]} 43. Kb2 {[%clk 0:00:04]}  Kg6 {[%clk 0:00:07]} 44. Rc4 {[%clk 0:00:04]}  Rb8 {[%clk 0:00:07]} 45. b4 {[%clk 0:00:05]}  Kf6 {[%clk 0:00:08]} 46. Kb3 {[%clk 0:00:05]}  Ke6 {[%clk 0:00:09]} 47. c3 {[%clk 0:00:05]}  Kd6 {[%clk 0:00:09]} 48. Rd4+ {[%clk 0:00:05]}  Rd5 {[%clk 0:00:09]} 49. Rh4 {[%clk 0:00:05]}  Rb7 {[%clk 0:00:09]} 50. Kc4 {[%clk 0:00:06]}  Rg5 {[%clk 0:00:08]} 51. Rh6+ {[%clk 0:00:06]}  Kc7 {[%clk 0:00:09]} 52. Kb3 {[%clk 0:00:06]}  Kb8 {[%clk 0:00:09]} 53. c4 {[%clk 0:00:05]}  Rg3+ {[%clk 0:00:09]} 54. Ka4 {[%clk 0:00:05]}  Ra7+ {[%clk 0:00:10]} 55. Kb5 {[%clk 0:00:05]}  Rb7+ {[%clk 0:00:11]} 56. Ka4 {[%clk 0:00:05]}  Rg1 {[%clk 0:00:11]} 57. Rh8+ {[%clk 0:00:03]}  Ka7 {[%clk 0:00:11]} 58. Kb3 {[%clk 0:00:03]}  Rg3+ {[%clk 0:00:11]} 59. Ka4 {[%clk 0:00:03]}  Rg4 {[%clk 0:00:11]} 60. c5 {[%clk 0:00:03]}  Rgxb4+ {[%clk 0:00:10]} 61. Ka5 {[%clk 0:00:03]}  R7b5# {[%clk 0:00:10]} 0-1


[Site "https://www.chess.com"]

[Event "Titled Tuesday Blitz July 11 Early 2023"]
[White "Kumsiashvili, Nikoloz"]
[Black "Papayan, Oleg"]
[WhiteFideId "13600621"]
[BlackFideId "4193911"]
[WhiteElo "2717"]
[BlackElo "2549"]
[Result "1-0"]
[Round "5"]
[TimeControl "180+2"]
[Date "2023.07.11"]
[WhiteClock "0:00:14"]
[BlackClock "0:00:00"]
[Board "47"]

1. Nf3 {[%clk 0:03:00]}  c5 {[%clk 0:02:55]} 2. b3 {[%clk 0:02:58]}  Nc6 {[%clk 0:02:55]} 3. Bb2 {[%clk 0:02:58]}  d5 {[%clk 0:02:48]} 4. e3 {[%clk 0:02:57]}  f6 {[%clk 0:02:44]} 5. d4 {[%clk 0:02:49]}  Bg4 {[%clk 0:02:36]} 6. Be2 {[%clk 0:02:45]}  e6 {[%clk 0:02:31]} 7. O-O {[%clk 0:02:40]}  Bd6 {[%clk 0:02:14]} 8. c4 {[%clk 0:02:31]}  Nge7 {[%clk 0:02:10]} 9. Nc3 {[%clk 0:02:29]}  O-O {[%clk 0:02:00]} 10. cxd5 {[%clk 0:02:26]}  exd5 {[%clk 0:01:52]} 11. dxc5 {[%clk 0:02:25]}  Bxc5 {[%clk 0:01:52]} 12. Nb5 {[%clk 0:02:22]}  Be6 {[%clk 0:01:25]} 13. Rc1 {[%clk 0:02:15]}  Bb6 {[%clk 0:01:18]} 14. Nbd4 {[%clk 0:01:54]}  Bf7 {[%clk 0:01:16]} 15. a3 {[%clk 0:01:48]}  Rc8 {[%clk 0:01:13]} 16. b4 {[%clk 0:01:47]}  Qd7 {[%clk 0:01:09]} 17. Nb3 {[%clk 0:01:38]}  Ng6 {[%clk 0:01:01]} 18. Nfd4 {[%clk 0:01:28]}  Nxd4 {[%clk 0:00:54]} 19. Bxd4 {[%clk 0:01:25]}  Rxc1 {[%clk 0:00:49]} 20. Qxc1 {[%clk 0:01:15]}  Bxd4 {[%clk 0:00:40]} 21. Nxd4 {[%clk 0:01:14]}  Rc8 {[%clk 0:00:40]} 22. Qd1 {[%clk 0:01:06]}  Qc7 {[%clk 0:00:34]} 23. Bg4 {[%clk 0:01:05]}  Re8 {[%clk 0:00:31]} 24. Qa4 {[%clk 0:00:58]}  a6 {[%clk 0:00:26]} 25. Qd1 {[%clk 0:00:34]}  Ne5 {[%clk 0:00:25]} 26. Bf5 {[%clk 0:00:34]}  Nc4 {[%clk 0:00:23]} 27. Qd3 {[%clk 0:00:30]}  g6 {[%clk 0:00:22]} 28. Bh3 {[%clk 0:00:30]}  Kg7 {[%clk 0:00:22]} 29. Rc1 {[%clk 0:00:29]}  Qe5 {[%clk 0:00:21]} 30. g3 {[%clk 0:00:25]}  Qe4 {[%clk 0:00:20]} 31. Bf1 {[%clk 0:00:22]}  Qxd3 {[%clk 0:00:19]} 32. Bxd3 {[%clk 0:00:23]}  Kf8 {[%clk 0:00:14]} 33. a4 {[%clk 0:00:21]}  Ke7 {[%clk 0:00:12]} 34. a5 {[%clk 0:00:20]}  Rc8 {[%clk 0:00:11]} 35. Ne2 {[%clk 0:00:16]}  Nd6 {[%clk 0:00:09]} 36. Rxc8 {[%clk 0:00:16]}  Nxc8 {[%clk 0:00:10]} 37. Nd4 {[%clk 0:00:16]}  Kd6 {[%clk 0:00:10]} 38. Kf1 {[%clk 0:00:16]}  Na7 {[%clk 0:00:06]} 39. Ke2 {[%clk 0:00:16]}  Nc6 {[%clk 0:00:07]} 40. Nxc6 {[%clk 0:00:16]}  Kxc6 {[%clk 0:00:08]} 41. Kd2 {[%clk 0:00:16]}  Be6 {[%clk 0:00:07]} 42. Kc3 {[%clk 0:00:16]}  Bc8 {[%clk 0:00:07]} 43. Kd4 {[%clk 0:00:16]}  Kd6 {[%clk 0:00:05]} 44. h4 {[%clk 0:00:17]}  Be6 {[%clk 0:00:04]} 45. h5 {[%clk 0:00:16]}  Bf7 {[%clk 0:00:03]} 46. h6 {[%clk 0:00:16]}  Be6 {[%clk 0:00:02]} 47. Bxg6 {[%clk 0:00:14]}  Kc6 {[%clk 0:00:01]} 48. Bxh7 {[%clk 0:00:14]}  Kb5 {[%clk 0:00:00]} 49. Bd3+ {[%clk 0:00:14]} 1-0


[Site "https://www.chess.com"]

[Event "Titled Tuesday Blitz July 11 Early 2023"]
[White "Frolyanov, Dmitry"]
[Black "Jaracz, Pawel"]
[WhiteFideId "4151976"]
[BlackFideId "1102222"]
[WhiteElo "2541"]
[BlackElo "2710"]
[Result "1-0"]
[Round "5"]
[TimeControl "180+2"]
[Date "2023.07.11"]
[WhiteClock "0:00:21"]
[BlackClock "0:00:05"]
[Board "49"]

1. d4 {[%clk 0:03:00]}  Nf6 {[%clk 0:02:59]} 2. c4 {[%clk 0:03:00]}  e6 {[%clk 0:02:59]} 3. Nf3 {[%clk 0:03:00]}  b6 {[%clk 0:02:58]} 4. a3 {[%clk 0:02:57]}  Ba6 {[%clk 0:02:58]} 5. e3 {[%clk 0:02:51]}  Be7 {[%clk 0:02:54]} 6. Bd3 {[%clk 0:02:45]}  d5 {[%clk 0:02:52]} 7. b3 {[%clk 0:02:44]}  O-O {[%clk 0:02:51]} 8. O-O {[%clk 0:02:43]}  dxc4 {[%clk 0:02:40]} 9. bxc4 {[%clk 0:02:42]}  c5 {[%clk 0:02:40]} 10. Bb2 {[%clk 0:02:41]}  Nc6 {[%clk 0:02:39]} 11. Nbd2 {[%clk 0:02:39]}  Na5 {[%clk 0:02:24]} 12. Rc1 {[%clk 0:02:36]}  Rc8 {[%clk 0:02:23]} 13. Qe2 {[%clk 0:02:35]}  Bd6 {[%clk 0:01:56]} 14. Rfd1 {[%clk 0:02:33]}  Qe7 {[%clk 0:01:56]} 15. e4 {[%clk 0:02:19]}  Nh5 {[%clk 0:01:31]} 16. e5 {[%clk 0:02:17]}  Bb8 {[%clk 0:01:25]} 17. Qe4 {[%clk 0:02:14]}  g6 {[%clk 0:01:24]} 18. d5 {[%clk 0:02:08]}  Bb7 {[%clk 0:00:55]} 19. Bb1 {[%clk 0:01:43]}  Rcd8 {[%clk 0:00:47]} 20. d6 {[%clk 0:01:38]}  Qd7 {[%clk 0:00:42]} 21. Qe3 {[%clk 0:01:36]}  f5 {[%clk 0:00:16]} 22. exf6 {[%clk 0:01:34]}  Nxf6 {[%clk 0:00:16]} 23. Ne4 {[%clk 0:01:07]}  Bxe4 {[%clk 0:00:14]} 24. Bxe4 {[%clk 0:01:08]}  Bxd6 {[%clk 0:00:13]} 25. Bb1 {[%clk 0:00:50]}  Qe7 {[%clk 0:00:13]} 26. h3 {[%clk 0:00:47]}  Nc6 {[%clk 0:00:12]} 27. Ng5 {[%clk 0:00:40]}  e5 {[%clk 0:00:12]} 28. Ne4 {[%clk 0:00:35]}  Nd4 {[%clk 0:00:12]} 29. Nxf6+ {[%clk 0:00:31]}  Qxf6 {[%clk 0:00:12]} 30. Be4 {[%clk 0:00:31]}  h5 {[%clk 0:00:07]} 31. Rd2 {[%clk 0:00:29]}  Kh7 {[%clk 0:00:08]} 32. Rcd1 {[%clk 0:00:27]}  Be7 {[%clk 0:00:07]} 33. Bd5 {[%clk 0:00:26]}  Bd6 {[%clk 0:00:07]} 34. Be4 {[%clk 0:00:26]}  Rde8 {[%clk 0:00:07]} 35. Rd3 {[%clk 0:00:24]}  Qh4 {[%clk 0:00:07]} 36. Bc1 {[%clk 0:00:24]}  Rf7 {[%clk 0:00:06]} 37. Qh6+ {[%clk 0:00:23]}  Kg8 {[%clk 0:00:05]} 38. Qxg6+ {[%clk 0:00:22]}  Kf8 {[%clk 0:00:06]} 39. Bh6+ {[%clk 0:00:21]}  Ke7 {[%clk 0:00:05]} 40. Bg5+ {[%clk 0:00:21]} 1-0


[Site "https://www.chess.com"]

[Event "Titled Tuesday Blitz July 11 Early 2023"]
[White "De La Villa Garcia, Jesus Maria"]
[Black "Akylbek2021"]
[WhiteFideId "2200040"]
[WhiteElo "2705"]
[BlackElo "2512"]
[Result "1-0"]
[Round "5"]
[TimeControl "180+2"]
[Date "2023.07.11"]
[WhiteClock "0:01:44"]
[BlackClock "0:00:02"]
[Board "50"]

1. e4 {[%clk 0:02:56]}  e6 {[%clk 0:02:59]} 2. d4 {[%clk 0:02:54]}  d5 {[%clk 0:03:00]} 3. Nd2 {[%clk 0:02:54]}  Nc6 {[%clk 0:02:59]} 4. Ngf3 {[%clk 0:02:52]}  Nf6 {[%clk 0:03:00]} 5. e5 {[%clk 0:02:51]}  Nd7 {[%clk 0:03:00]} 6. c3 {[%clk 0:02:50]}  f6 {[%clk 0:03:00]} 7. exf6 {[%clk 0:02:49]}  Qxf6 {[%clk 0:03:01]} 8. Bd3 {[%clk 0:02:49]}  Bd6 {[%clk 0:03:01]} 9. O-O {[%clk 0:02:48]}  O-O {[%clk 0:03:00]} 10. Re1 {[%clk 0:02:47]}  Kh8 {[%clk 0:02:56]} 11. Nf1 {[%clk 0:02:45]}  e5 {[%clk 0:02:56]} 12. Bg5 {[%clk 0:02:43]}  Qf7 {[%clk 0:02:52]} 13. dxe5 {[%clk 0:02:43]}  Ndxe5 {[%clk 0:02:52]} 14. Be2 {[%clk 0:02:40]}  Bg4 {[%clk 0:02:34]} 15. Nxe5 {[%clk 0:02:26]}  Qxf2+ {[%clk 0:02:22]} 16. Kh1 {[%clk 0:02:26]}  Nxe5 {[%clk 0:02:01]} 17. Bxg4 {[%clk 0:02:19]}  Qxb2 {[%clk 0:01:42]} 18. Be3 {[%clk 0:02:05]}  Nc4 {[%clk 0:01:07]} 19. Bd4 {[%clk 0:01:51]}  c5 {[%clk 0:01:06]} 20. Rb1 {[%clk 0:01:45]}  Qxa2 {[%clk 0:00:58]} 21. Bxg7+ {[%clk 0:01:44]}  Kxg7 {[%clk 0:00:58]} 22. Rxb7+ {[%clk 0:01:45]}  Kh8 {[%clk 0:00:25]} 23. Qd3 {[%clk 0:01:45]}  Rxf1+ {[%clk 0:00:02]} 24. Rxf1 {[%clk 0:01:44]} 1-0


[Site "https://www.chess.com"]

[Event "Titled Tuesday Blitz July 11 Early 2023"]
[White "djokovic74"]
[Black "Rakitic2010"]
[WhiteElo "2704"]
[BlackElo "2428"]
[Result "1-0"]
[Round "5"]
[TimeControl "180+2"]
[Date "2023.07.11"]
[WhiteClock "0:00:39"]
[BlackClock "0:00:12"]
[Board "52"]

1. e4 {[%clk 0:03:00]}  c5 {[%clk 0:03:00]} 2. Nf3 {[%clk 0:03:01]}  e6 {[%clk 0:03:00]} 3. d4 {[%clk 0:03:01]}  cxd4 {[%clk 0:03:01]} 4. Nxd4 {[%clk 0:03:01]}  a6 {[%clk 0:03:02]} 5. c4 {[%clk 0:03:01]}  Nf6 {[%clk 0:03:01]} 6. Nc3 {[%clk 0:03:02]}  Qc7 {[%clk 0:03:01]} 7. Be2 {[%clk 0:03:02]}  Bb4 {[%clk 0:03:01]} 8. Nc2 {[%clk 0:03:02]}  Bxc3+ {[%clk 0:03:00]} 9. bxc3 {[%clk 0:03:03]}  Nxe4 {[%clk 0:02:49]} 10. Qd4 {[%clk 0:03:03]}  Nf6 {[%clk 0:02:23]} 11. Bf4 {[%clk 0:03:03]}  Qa5 {[%clk 0:02:17]} 12. Bd6 {[%clk 0:02:51]}  Nc6 {[%clk 0:02:16]} 13. Qe3 {[%clk 0:02:43]}  Qf5 {[%clk 0:01:53]} 14. Bd3 {[%clk 0:02:32]}  Qh5 {[%clk 0:01:47]} 15. O-O {[%clk 0:02:28]}  Ne7 {[%clk 0:01:32]} 16. Nd4 {[%clk 0:02:24]}  e5 {[%clk 0:01:18]} 17. Qxe5 {[%clk 0:01:45]}  Qxe5 {[%clk 0:01:12]} 18. Bxe5 {[%clk 0:01:45]}  O-O {[%clk 0:01:07]} 19. Bd6 {[%clk 0:01:40]}  Re8 {[%clk 0:01:03]} 20. Rfe1 {[%clk 0:01:35]}  Nc6 {[%clk 0:00:58]} 21. Nf5 {[%clk 0:01:28]}  Re6 {[%clk 0:00:55]} 22. c5 {[%clk 0:01:26]}  b6 {[%clk 0:00:47]} 23. Bc4 {[%clk 0:01:25]}  bxc5 {[%clk 0:00:42]} 24. Bxe6 {[%clk 0:01:25]}  fxe6 {[%clk 0:00:41]} 25. Ne3 {[%clk 0:01:25]}  Ne4 {[%clk 0:00:41]} 26. Bg3 {[%clk 0:01:22]}  d5 {[%clk 0:00:35]} 27. c4 {[%clk 0:01:18]}  d4 {[%clk 0:00:30]} 28. Ng4 {[%clk 0:01:11]}  Nc3 {[%clk 0:00:31]} 29. Ne5 {[%clk 0:01:07]}  Nb4 {[%clk 0:00:31]} 30. Rac1 {[%clk 0:00:56]}  Ncxa2 {[%clk 0:00:27]} 31. Rcd1 {[%clk 0:00:51]}  Nc3 {[%clk 0:00:27]} 32. Rd2 {[%clk 0:00:51]}  Bb7 {[%clk 0:00:27]} 33. f3 {[%clk 0:00:44]}  a5 {[%clk 0:00:27]} 34. Nd7 {[%clk 0:00:44]}  Rc8 {[%clk 0:00:21]} 35. Rxe6 {[%clk 0:00:41]}  a4 {[%clk 0:00:21]} 36. Re7 {[%clk 0:00:40]}  a3 {[%clk 0:00:19]} 37. Be5 {[%clk 0:00:39]}  a2 {[%clk 0:00:12]} 38. Rxg7+ {[%clk 0:00:39]}  Kh8 {[%clk 0:00:12]} 39. Rg3# {[%clk 0:00:39]} 1-0


[Site "https://www.chess.com"]

[Event "Titled Tuesday Blitz July 11 Early 2023"]
[White "Andreassen, Lars"]
[Black "NikaVolkov"]
[WhiteFideId "1504878"]
[WhiteElo "2341"]
[BlackElo "2695"]
[Result "0-1"]
[Round "5"]
[TimeControl "180+2"]
[Date "2023.07.11"]
[WhiteClock "0:01:20"]
[BlackClock "0:02:15"]
[Board "53"]

1. d4 {[%clk 0:02:10]}  d5 {[%clk 0:02:59]} 2. Nf3 {[%clk 0:02:11]}  e6 {[%clk 0:02:59]} 3. c4 {[%clk 0:02:12]}  Nf6 {[%clk 0:03:00]} 4. Nc3 {[%clk 0:02:12]}  c6 {[%clk 0:03:00]} 5. Bg5 {[%clk 0:02:13]}  Be7 {[%clk 0:03:00]} 6. e3 {[%clk 0:02:13]}  O-O {[%clk 0:03:00]} 7. Bd3 {[%clk 0:02:14]}  dxc4 {[%clk 0:03:00]} 8. Bxc4 {[%clk 0:02:13]}  b5 {[%clk 0:03:01]} 9. Bb3 {[%clk 0:02:13]}  Bb7 {[%clk 0:03:02]} 10. O-O {[%clk 0:02:12]}  Nbd7 {[%clk 0:03:02]} 11. e4 {[%clk 0:02:12]}  a5 {[%clk 0:03:02]} 12. e5 {[%clk 0:02:09]}  Nd5 {[%clk 0:03:02]} 13. Bxe7 {[%clk 0:02:09]}  Qxe7 {[%clk 0:03:03]} 14. Ne4 {[%clk 0:02:08]}  c5 {[%clk 0:03:03]} 15. Nd6 {[%clk 0:02:05]}  Bc6 {[%clk 0:02:53]} 16. dxc5 {[%clk 0:02:00]}  Nxc5 {[%clk 0:02:53]} 17. Rc1 {[%clk 0:02:00]}  Qa7 {[%clk 0:02:39]} 18. Qc2 {[%clk 0:01:55]}  Nxb3 {[%clk 0:02:37]} 19. axb3 {[%clk 0:01:53]}  Nb4 {[%clk 0:02:35]} 20. Qe2 {[%clk 0:01:38]}  Qb6 {[%clk 0:02:27]} 21. Nd4 {[%clk 0:01:33]}  Qxd4 {[%clk 0:02:25]} 22. Rfd1 {[%clk 0:01:33]}  Qb6 {[%clk 0:02:23]} 23. Rc3 {[%clk 0:01:28]}  Nd5 {[%clk 0:02:15]} 24. Rh3 {[%clk 0:01:20]}  Nf4 {[%clk 0:02:15]} 0-1


[Site "https://www.chess.com"]